bitfinex/quotes_BTCUSD_20240803
["timestamp","ask_amount","ask_price","bid_price","bid_amount"]
[1722672807082,1.90271995,61744.0,61743.0,0.000913]
[1722672807255,1.88871995,61744.0,61743.0,0.000913]
[1722672807455,2.1317553,61744.0,61743.0,0.000913]
[1722672807662,2.3040553,61744.0,61743.0,0.000913]
[1722672807887,2.02738813,61744.0,61743.0,0.000913]
[1722672808291,2.21208813,61744.0,61743.0,0.000913]
[1722672808632,2.47292753,61744.0,61743.0,0.000913]
[1722672808834,2.21208813,61744.0,61743.0,0.000913]
[1722672809036,2.30830527,61744.0,61743.0,0.000913]
[1722672809241,2.30827715,61744.0,61743.0,0.000913]
[1722672809625,2.29460954,61744.0,61743.0,0.000913]
[1722672809787,2.32260954,61744.0,61743.0,0.000913]
[1722672810188,2.29460954,61744.0,61743.0,0.000913]
[1722672810598,2.32260954,61744.0,61743.0,0.000913]
[1722672811407,2.15556312,61744.0,61743.0,0.000913]
[1722672811605,2.32291041,61744.0,61743.0,0.000913]
[1722672813978,2.56122319,61744.0,61743.0,0.000913]
[1722672814797,2.56182693,61744.0,61743.0,0.000913]
[1722672815201,2.05981824,61744.0,61743.0,0.000913]
[1722672815402,2.32360736,61744.0,61743.0,0.000913]
[1722672818896,2.3207096,61744.0,61743.0,0.000913]
[1722672819325,2.32072492,61744.0,61743.0,0.000913]
[1722672820551,2.32084841,61744.0,61743.0,0.000913]
[1722672822483,2.321093,61744.0,61743.0,0.000913]
[1722672823395,0.03,61734.0,61733.0,0.0759]
[1722672823631,0.03,61734.0,61710.0,0.010032]
[1722672823632,0.131492,61732.0,61731.0,0.0603]
[1722672823874,0.69138792,61732.0,61731.0,0.0603]
[1722672824082,0.52811423,61732.0,61731.0,0.0603]
[1722672824308,1.66331867,61732.0,61731.0,0.0603]
[1722672824731,1.65331867,61732.0,61731.0,0.0603]
[1722672825001,1.66330918,61732.0,61731.0,0.0603]
[1722672825247,1.50005423,61732.0,61731.0,0.0603]
[1722672825442,1.51405423,61732.0,61731.0,0.0603]
[1722672826011,1.57894923,61732.0,61731.0,0.0603]
[1722672826207,1.59289028,61732.0,61731.0,0.0603]
[1722672826993,1.58289028,61732.0,61731.0,0.0603]
[1722672827396,1.68444019,61732.0,61731.0,0.0603]
[1722672829670,1.69444019,61732.0,61731.0,0.0603]
[1722672830079,1.69561378,61732.0,61731.0,0.0603]
[1722672830519,1.69618922,61732.0,61731.0,0.0603]
[1722672831394,1.70541274,61732.0,61731.0,0.0603]
[1722672832389,1.69618922,61732.0,61731.0,0.0603]
[1722672833871,1.6864041,61732.0,61731.0,0.0603]
[1722672835515,1.1212341,61732.0,61731.0,0.1425]
[1722672835716,1.01937163,61732.0,61731.0,0.1425]
[1722672835939,1.14028333,61732.0,61731.0,0.1425]
[1722672836943,1.05121662,61732.0,61731.0,0.1425]
[1722672837139,0.95447663,61732.0,61731.0,0.1425]
[1722672837574,0.89052419,61732.0,61731.0,0.1425]
[1722672837777,1.05255732,61732.0,61731.0,0.1425]
[1722672838056,0.71282407,61732.0,61731.0,0.1425]
[1722672838260,0.78538829,61732.0,61731.0,0.1425]
[1722672838671,0.71282407,61732.0,61731.0,0.1425]
[1722672838877,0.78539964,61732.0,61731.0,0.1425]
[1722672839080,0.78157673,61732.0,61731.0,0.1425]
[1722672839303,0.81873577,61732.0,61731.0,0.1425]
[1722672839498,0.71182407,61732.0,61731.0,0.1425]
[1722672839847,0.83281181,61732.0,61731.0,0.1425]
[1722672839991,0.95480907,61732.0,61731.0,0.1425]
[1722672840776,0.88952419,61732.0,61731.0,0.1425]
[1722672840986,0.95551612,61732.0,61731.0,0.1425]
[1722672841199,0.71253112,61732.0,61731.0,0.1425]
[1722672841406,0.712532,61732.0,61731.0,0.1425]
[1722672842239,0.955517,61732.0,61731.0,0.1425]
[1722672843330,1.10083814,61732.0,61731.0,0.1425]
[1722672843531,0.955517,61732.0,61731.0,0.1425]
[1722672843732,0.93724238,61732.0,61731.0,0.1425]
[1722672843937,1.10281789,61732.0,61731.0,0.1425]
[1722672844133,0.95749675,61732.0,61731.0,0.1425]
[1722672844390,1.10281789,61732.0,61731.0,0.1425]
[1722672845723,0.95749675,61732.0,61731.0,0.1425]
[1722672846899,1.10294702,61732.0,61731.0,0.1425]
[1722672847099,0.95749675,61732.0,61731.0,0.1425]
[1722672847333,0.79192124,61732.0,61731.0,0.1425]
[1722672847532,0.95770624,61732.0,61731.0,0.1425]
[1722672850870,1.20069124,61732.0,61731.0,0.1425]
[1722672851074,1.26381385,61732.0,61731.0,0.1425]
[1722672851316,1.36083137,61732.0,61731.0,0.1425]
[1722672851547,1.19857967,61732.0,61731.0,0.1425]
[1722672851811,1.36025624,61732.0,61731.0,0.1425]
[1722672852872,0.95359781,61732.0,61731.0,0.1425]
[1722672852996,1.11727124,61732.0,61731.0,0.1425]
[1722672853194,1.19658281,61732.0,61731.0,0.1425]
[1722672853621,1.36027127,61732.0,61731.0,0.143413]
[1722672854694,1.35852568,61732.0,61731.0,0.143413]
[1722672855478,1.19483722,61732.0,61731.0,0.143413]
[1722672855963,1.35852554,61732.0,61731.0,0.143413]
[1722672856161,1.35852353,61732.0,61731.0,0.143413]
[1722672856290,1.19483722,61732.0,61731.0,0.143413]
[1722672856692,1.35852422,61732.0,61731.0,0.143413]
[1722672858239,1.3585798,61732.0,61731.0,0.143413]
[1722672858834,1.3585798,61732.0,61731.0,0.083113]
[1722672859033,1.1948928,61732.0,61731.0,0.083113]
[1722672859285,1.1948928,61732.0,61731.0,0.000913]
[1722672861958,1.19433528,61732.0,61731.0,0.000913]
[1722672862159,1.2890719,61732.0,61731.0,0.000913]
[1722672862693,1.28911586,61732.0,61731.0,0.000913]
[1722672863839,1.38999738,61732.0,61731.0,0.000913]
[1722672865731,1.29419271,61732.0,61731.0,0.000913]
[1722672865929,1.38672097,61732.0,61731.0,0.000913]
[1722672867267,1.44292097,61732.0,61731.0,0.000913]
[1722672868020,1.59012097,61732.0,61731.0,0.000913]
[1722672868570,1.44292097,61732.0,61731.0,0.000913]
[1722672869139,1.44321207,61732.0,61731.0,0.000913]
[1722672869341,1.34847545,61732.0,61731.0,0.000913]
[1722672869569,1.25545548,61732.0,61731.0,0.000913]
[1722672869697,1.34845789,61732.0,61731.0,0.000913]
[1722672872255,1.34836759,61732.0,61731.0,0.000913]
[1722672873428,1.25545548,61732.0,61731.0,0.000913]
[1722672873630,1.24982612,61732.0,61731.0,0.000913]
[1722672873803,1.18579756,61732.0,61731.0,0.000913]
[1722672874006,1.25023694,61732.0,61731.0,0.000913]
[1722672874425,1.35079945,61732.0,61731.0,0.000913]
[1722672875032,1.35049124,61732.0,61731.0,0.000913]
[1722672875234,1.24985198,61732.0,61731.0,0.000913]
[1722672875432,1.35048862,61732.0,61731.0,0.000913]
[1722672880973,1.34862092,61732.0,61731.0,0.000913]
[1722672884371,1.09110624,61732.0,61731.0,0.000913]
[1722672884591,1.34837483,61732.0,61731.0,0.000913]
[1722672884994,1.09110624,61732.0,61731.0,0.000913]
[1722672885199,1.34804003,61732.0,61731.0,0.000913]
[1722672891776,1.25485524,61732.0,61731.0,0.000913]
[1722672891948,1.34774288,61732.0,61731.0,0.000913]
[1722672895529,1.3480518,61732.0,61731.0,0.000913]
[1722672895734,1.34785686,61732.0,61731.0,0.000913]
[1722672899226,1.34726645,61732.0,61731.0,0.000913]
[1722672900031,1.24733041,61732.0,61731.0,0.000913]
[1722672900316,1.34721266,61732.0,61731.0,0.000913]
[1722672901816,1.24733041,61732.0,61731.0,0.000913]
[1722672902239,1.34717412,61732.0,61731.0,0.000913]
[1722672905409,1.25395222,61732.0,61731.0,0.000913]
[1722672905868,1.25395049,61732.0,61731.0,0.000913]
[1722672906077,1.34611994,61732.0,61731.0,0.000913]
[1722672908600,1.73030494,61732.0,61731.0,0.000913]
[1722672908810,1.75330494,61732.0,61731.0,0.000913]
[1722672909021,2.02628994,61732.0,61731.0,1e-06]
[1722672909232,2.29698994,61732.0,61731.0,1e-06]
[1722672910087,2.54655844,61732.0,61731.0,1e-06]
[1722672910324,2.28398994,61732.0,61731.0,1e-06]
[1722672910564,2.29798994,61732.0,61731.0,1e-06]
[1722672910769,2.28398994,61732.0,61731.0,1e-06]
[1722672911177,2.56038554,61732.0,61731.0,1e-06]
[1722672911404,2.28398994,61732.0,61731.0,1e-06]
[1722672911815,2.29798994,61732.0,61731.0,1e-06]
[1722672912022,2.3073632,61732.0,61731.0,1e-06]
[1722672912222,2.2933632,61732.0,61731.0,1e-06]
[1722672912630,2.30893759,61732.0,61731.0,1e-06]
[1722672912832,2.31431065,61732.0,61731.0,1e-06]
[1722672913052,2.31431065,61732.0,61716.0,0.010032]
[1722672913053,1.093698,61717.0,61716.0,0.010032]
[1722672913306,1.76541333,61717.0,61716.0,0.010032]
[1722672913516,1.86541333,61717.0,61716.0,0.010032]
[1722672913721,2.34678551,61717.0,61716.0,0.010032]
[1722672914170,2.35478551,61717.0,61716.0,0.010032]
[1722672914373,1.423074,61711.0,61706.0,0.000913]
[1722672914580,2.84458933,61711.0,61706.0,0.000913]
[1722672914783,3.25993172,61711.0,61710.0,1e-06]
[1722672914991,3.58401841,61711.0,61710.0,1e-06]
[1722672915206,3.28977127,61711.0,61710.0,1e-06]
[1722672915411,3.28977127,61711.0,61699.0,0.0031016]
[1722672915412,1.73691,61700.0,61699.0,0.0031016]
[1722672915632,3.26132533,61700.0,61699.0,6e-07]
[1722672915834,3.03331994,61700.0,61699.0,6e-07]
[1722672916046,2.7641399,61700.0,61699.0,6e-07]
[1722672916251,2.60165824,61700.0,61699.0,6e-07]
[1722672916463,2.7042006,61700.0,61699.0,6e-07]
[1722672916676,2.7604006,61700.0,61699.0,6e-07]
[1722672916880,2.76090268,61700.0,61699.0,6e-07]
[1722672917344,2.77490268,61700.0,61699.0,6e-07]
[1722672917548,2.76090268,61700.0,61699.0,6e-07]
[1722672917987,2.81890268,61700.0,61699.0,6e-07]
[1722672918233,2.96010268,61700.0,61699.0,6e-07]
[1722672918441,3.11680268,61700.0,61699.0,6e-07]
[1722672918651,3.21041412,61700.0,61699.0,6e-07]
[1722672919926,3.47666924,61700.0,61699.0,6e-07]
[1722672920130,3.64306647,61700.0,61699.0,0.0009136]
[1722672920337,3.64306647,61700.0,61699.0,6e-07]
[1722672920542,1.53792,61695.0,61687.0,0.010032]
[1722672920746,2.11972841,61695.0,61687.0,0.010032]
[1722672921395,2.26417966,61695.0,61687.0,0.010032]
[1722672921595,2.3577911,61695.0,61687.0,0.010032]
[1722672922235,2.22733985,61695.0,61687.0,0.010032]
[1722672922867,2.36853985,61695.0,61687.0,0.010032]
[1722672923072,2.37134889,61695.0,61687.0,0.010032]
[1722672923320,2.21895166,61695.0,61687.0,0.010032]
[1722672923536,2.37952505,61695.0,61687.0,0.010032]
[1722672923734,0.322273,61691.0,61690.0,8.8e-07]
[1722672923941,0.808597,61688.0,61687.0,0.010032]
[1722672924153,1.79214763,61688.0,61687.0,0.010032]
[1722672924360,1.69505907,61688.0,61687.0,0.010032]
[1722672924575,1.60942003,61688.0,61687.0,0.010032]
[1722672924786,1.60942003,61688.0,61687.0,0.090532]
[1722672924787,1.08344959,61688.0,61687.0,0.090532]
[1722672924997,1.06471524,61688.0,61687.0,0.090532]
[1722672925646,1.07871524,61688.0,61687.0,0.090532]
[1722672926276,0.77935624,61688.0,61687.0,0.090532]
[1722672927590,0.53619724,61688.0,61687.0,0.090532]
[1722672927794,0.79135624,61688.0,61687.0,0.090532]
[1722672927998,0.77735624,61688.0,61687.0,0.090532]
[1722672928202,0.79135624,61688.0,61687.0,0.090532]
[1722672932034,0.85629324,61688.0,61687.0,0.090532]
[1722672932433,0.61313424,61688.0,61687.0,0.090532]
[1722672932607,0.61313424,61688.0,61687.0,0.155732]
[1722672933028,0.85629324,61688.0,61687.0,0.155732]
[1722672935144,1.09945224,61688.0,61687.0,0.155732]
[1722672935345,1.09945224,61688.0,61687.0,0.010032]
[1722672935346,1.34261124,61688.0,61687.0,0.010032]
[1722672935544,1.95401323,61688.0,61687.0,0.010032]
[1722672936006,2.20517223,61688.0,61687.0,0.010032]
[1722672936199,2.03914289,61688.0,61687.0,0.010032]
[1722672936400,2.05214289,61688.0,61687.0,0.010032]
[1722672936621,2.31630189,61688.0,61687.0,0.010032]
[1722672936822,2.29630189,61688.0,61687.0,0.010032]
[1722672937042,2.28230189,61688.0,61687.0,0.010032]
[1722672937252,2.30230189,61688.0,61687.0,0.010032]
[1722672937428,2.30230189,61688.0,61681.0,0.010032]
[1722672937429,0.01,61682.0,61681.0,0.010032]
[1722672937604,4.21492233,61682.0,61681.0,0.010032]
[1722672937829,4.28248023,61682.0,61681.0,0.010032]
[1722672937990,4.18968247,61682.0,61681.0,0.010032]
[1722672938189,4.28725575,61682.0,61681.0,0.010032]
[1722672939171,4.23105575,61682.0,61681.0,0.010032]
[1722672939408,4.24305575,61682.0,61681.0,0.010032]
[1722672939824,4.3560623,61682.0,61681.0,0.010032]
[1722672940030,4.24905575,61682.0,61681.0,0.010032]
[1722672940232,3.88745575,61682.0,61681.0,0.010032]
[1722672940438,3.87345575,61682.0,61681.0,0.010032]
[1722672940847,3.88745575,61682.0,61681.0,0.010032]
[1722672941051,3.81335648,61682.0,61681.0,0.010032]
[1722672941225,3.88857184,61682.0,61681.0,0.010032]
[1722672941792,3.64538984,61682.0,61681.0,0.010032]
[1722672942465,3.88857184,61682.0,61681.0,0.010032]
[1722672943078,3.64538984,61682.0,61681.0,0.010032]
[1722672943742,3.99916036,61682.0,61681.0,0.010032]
[1722672943943,3.88857184,61682.0,61681.0,0.010032]
[1722672944605,3.7996383,61682.0,61681.0,0.010032]
[1722672944759,3.88961191,61682.0,61681.0,0.010032]
[1722672945176,4.00086911,61682.0,61681.0,0.010032]
[1722672945382,3.88961191,61682.0,61681.0,0.010032]
[1722672945749,4.00082251,61682.0,61681.0,0.010032]
[1722672946941,3.88961191,61682.0,61681.0,0.010032]
[1722672947154,4.00073153,61682.0,61681.0,0.010032]
[1722672948130,3.99980875,61682.0,61681.0,0.010032]
[1722672948353,4.14100875,61682.0,61681.0,0.010032]
[1722672948607,4.86130834,61682.0,61681.0,0.010032]
[1722672949232,4.69395317,61682.0,61681.0,0.010032]
[1722672949440,4.70395317,61682.0,61681.0,0.010032]
[1722672949641,4.69395317,61682.0,61681.0,0.010032]
[1722672949847,4.70395317,61682.0,61681.0,0.010032]
[1722672950205,4.72395317,61682.0,61681.0,0.010032]
[1722672951208,4.86130834,61682.0,61681.0,0.010032]
[1722672951420,4.71841735,61682.0,61681.0,0.010032]
[1722672951642,4.69841735,61682.0,61681.0,0.010032]
[1722672953096,4.53401754,61682.0,61681.0,0.010032]
[1722672953307,4.72088,61682.0,61681.0,0.010032]
[1722672953453,4.76903919,61682.0,61681.0,0.010032]
[1722672953669,4.72088,61682.0,61681.0,0.010032]
[1722672954108,4.70088,61682.0,61681.0,0.010032]
[1722672954461,4.72088,61682.0,61681.0,0.010032]
[1722672954655,4.81727375,61682.0,61681.0,0.010032]
[1722672954776,4.72088,61682.0,61681.0,0.010032]
[1722672954978,4.44926024,61682.0,61681.0,0.010032]
[1722672955203,4.72021621,61682.0,61681.0,0.010032]
[1722672955852,4.82076203,61682.0,61681.0,0.010032]
[1722672956274,4.70021621,61682.0,61681.0,0.010032]
[1722672956917,4.72021621,61682.0,61681.0,0.010032]
[1722672958151,4.86480391,61682.0,61681.0,0.010032]
[1722672958559,4.67996444,61682.0,61681.0,0.010032]
[1722672958799,4.86472763,61682.0,61681.0,0.010032]
[1722672959002,4.77854527,61682.0,61681.0,0.010032]
[1722672959212,4.63537794,61682.0,61681.0,0.010032]
[1722672959546,4.61537794,61682.0,61681.0,0.010032]
[1722672959802,4.63537794,61682.0,61681.0,0.010032]
[1722672960385,4.61537794,61682.0,61681.0,0.010032]
[1722672961205,4.63581549,61682.0,61681.0,0.010032]
[1722672961756,4.61581549,61682.0,61681.0,0.010032]
[1722672963211,4.77889314,61682.0,61681.0,0.010032]
[1722672963590,4.15912486,61682.0,61681.0,0.010032]
[1722672963805,4.05253349,61682.0,61681.0,0.151632]
[1722672964639,3.96631567,61682.0,61681.0,0.151632]
[1722672964868,4.05311992,61682.0,61681.0,0.151632]
[1722672965477,3.99661992,61682.0,61681.0,0.151632]
[1722672965690,4.05311992,61682.0,61681.0,0.151632]
[1722672966069,4.05311992,61682.0,61681.0,0.010032]
[1722672966269,4.06311992,61682.0,61681.0,0.010032]
[1722672966841,4.22621129,61682.0,61681.0,0.010032]
[1722672967260,4.30630192,61682.0,61681.0,0.010032]
[1722672967460,4.06311992,61682.0,61681.0,0.010032]
[1722672968117,4.06106012,61682.0,61681.0,0.010032]
[1722672968333,4.06112049,61682.0,61681.0,0.010032]
[1722672968547,3.97639533,61682.0,61681.0,0.010032]
[1722672968754,4.06233684,61682.0,61681.0,0.010032]
[1722672970225,3.99583684,61682.0,61681.0,0.151632]
[1722672970446,4.05233684,61682.0,61681.0,0.151632]
[1722672971480,3.96809792,61682.0,61681.0,0.151632]
[1722672971684,4.00071447,61682.0,61681.0,0.151632]
[1722672971895,3.75753247,61682.0,61681.0,0.151632]
[1722672973951,3.07066652,61682.0,61681.0,0.151632]
[1722672975053,3.07066652,61682.0,61681.0,0.010032]
[1722672975054,2.87477824,61682.0,61681.0,0.010032]
[1722672975265,3.15214531,61682.0,61681.0,0.010032]
[1722672976281,3.56268248,61682.0,61681.0,0.010032]
[1722672976640,3.16214531,61682.0,61681.0,0.010032]
[1722672978587,3.07208848,61682.0,61681.0,0.010032]
[1722672978808,3.16168825,61682.0,61681.0,0.010032]
[1722672979018,3.16143396,61682.0,61681.0,0.010032]
[1722672979224,3.39939822,61682.0,61681.0,0.010032]
[1722672980156,3.39895678,61682.0,61681.0,0.010032]
[1722672980362,3.16099252,61682.0,61681.0,0.010032]
[1722672981694,3.15099252,61682.0,61681.0,0.156432]
[1722672981892,3.06214899,61682.0,61681.0,0.156432]
[1722672982140,3.15119971,61682.0,61681.0,0.156432]
[1722672985332,2.96382896,61682.0,61681.0,0.156432]
[1722672985535,3.15402349,61682.0,61681.0,0.010032]
[1722672985924,3.39245069,61682.0,61681.0,0.010032]
[1722672987564,3.15402349,61682.0,61681.0,0.010032]
[1722672988570,3.39245069,61682.0,61681.0,0.010032]
[1722672988937,3.12006907,61682.0,61681.0,0.010032]
[1722672989052,3.3043273,61682.0,61681.0,0.010032]
[1722672989458,3.11761483,61682.0,61681.0,0.010032]
[1722672989723,3.30435904,61682.0,61681.0,0.010032]
[1722672989894,3.76811297,61682.0,61681.0,0.010032]
[1722672990289,3.71854104,61682.0,61681.0,0.010032]
[1722672990734,3.53179683,61682.0,61681.0,0.010032]
[1722672990942,3.7180414,61682.0,61681.0,0.010032]
[1722672991526,3.7380414,61682.0,61681.0,1e-06]
[1722672991727,1.518523,61681.0,61680.0,4.7e-07]
[1722672991895,2.13865767,61681.0,61680.0,4.7e-07]
[1722672992091,2.1377634,61681.0,61680.0,4.7e-07]
[1722672992297,2.3809494,61681.0,61680.0,4.7e-07]
[1722672993175,2.3949494,61681.0,61680.0,4.7e-07]
[1722672993789,2.4089494,61681.0,61680.0,4.7e-07]
[1722672994773,2.58630457,61681.0,61680.0,4.7e-07]
[1722672995378,2.47970525,61681.0,61680.0,4.7e-07]
[1722672995792,2.75044127,61681.0,61680.0,4.7e-07]
[1722672995996,2.74044127,61681.0,61680.0,4.7e-07]
[1722672996198,2.48836575,61681.0,61680.0,4.7e-07]
[1722672997686,2.46836575,61681.0,61680.0,4.7e-07]
[1722672997908,2.45436575,61681.0,61680.0,4.7e-07]
[1722672998067,2.3400099,61681.0,61680.0,4.7e-07]
[1722672998881,2.3260099,61681.0,61680.0,4.7e-07]
[1722672999078,1.094409,61677.0,61676.0,0.07891727]
[1722672999279,1.78191365,61677.0,61676.0,0.07891727]
[1722672999528,2.02010497,61677.0,61676.0,0.07891727]
[1722672999735,1.75415573,61677.0,61676.0,0.07891727]
[1722672999938,2.02001314,61677.0,61676.0,0.07891727]
[1722673000142,1.78182565,61677.0,61676.0,0.07891727]
[1722673000550,2.03401314,61677.0,61676.0,0.07891727]
[1722673001170,1.89291314,61677.0,61676.0,0.07891727]
[1722673001281,1.72522565,61677.0,61676.0,0.07891727]
[1722673001490,1.72522565,61677.0,61676.0,0.14461727]
[1722673002388,1.72522565,61677.0,61676.0,0.00011727]
[1722673002567,1.96341314,61677.0,61676.0,0.00011727]
[1722673002802,1.72522565,61677.0,61676.0,0.00011727]
[1722673003220,1.96341314,61677.0,61676.0,0.00011727]
[1722673004468,1.72522565,61677.0,61676.0,0.00011727]
[1722673004668,1.96341314,61677.0,61676.0,0.00011727]
[1722673005015,1.72522565,61677.0,61676.0,0.14461727]
[1722673006262,1.72900226,61677.0,61676.0,0.14461727]
[1722673008210,1.30630026,61677.0,61676.0,0.14461727]
[1722673008415,1.19605613,61677.0,61676.0,0.14461727]
[1722673008859,1.35939994,61677.0,61676.0,0.14461727]
[1722673009063,1.46997398,61677.0,61676.0,0.14461727]
[1722673009797,1.47410253,61677.0,61676.0,0.14461727]
[1722673010001,0.95692457,61677.0,61676.0,0.14461727]
[1722673010392,1.36347038,61677.0,61676.0,0.14461727]
[1722673010692,1.47428657,61677.0,61676.0,0.14461727]
[1722673010844,1.4602852,61677.0,61676.0,0.14461727]
[1722673011045,1.4742852,61677.0,61676.0,0.14461727]
[1722673011248,1.47425196,61677.0,61676.0,0.14461727]
[1722673011454,1.46025196,61677.0,61676.0,0.14461727]
[1722673011650,1.47425196,61677.0,61676.0,0.14461727]
[1722673012086,1.47441061,61677.0,61676.0,0.14461727]
[1722673012558,1.31111364,61677.0,61676.0,0.14461727]
[1722673012728,1.47443588,61677.0,61676.0,0.14461727]
[1722673012966,1.47443754,61677.0,61676.0,0.14461727]
[1722673013171,0.95678648,61677.0,61676.0,0.14461727]
[1722673013373,0.95863175,61677.0,61676.0,0.14461727]
[1722673014548,1.20183375,61677.0,61676.0,0.14461727]
[1722673015662,0.95863175,61677.0,61676.0,0.14461727]
[1722673016244,0.95863175,61677.0,61676.0,0.14553027]
[1722673016469,1.20183375,61677.0,61676.0,0.14553027]
[1722673016665,1.112805,61677.0,61676.0,0.14553027]
[1722673016841,1.20357804,61677.0,61676.0,0.14553027]
[1722673017586,0.96037604,61677.0,61676.0,0.14553027]
[1722673018544,1.20357804,61677.0,61676.0,0.14553027]
[1722673018742,0.96037604,61677.0,61676.0,0.14553027]
[1722673020049,1.105508,61677.0,61676.0,0.14053027]
[1722673020249,1.03083794,61677.0,61676.0,0.14053027]
[1722673020461,1.1063774,61677.0,61676.0,0.14053027]
[1722673020918,1.10649683,61677.0,61676.0,0.14053027]
[1722673021383,0.96136487,61677.0,61676.0,0.14053027]
[1722673022686,0.35335987,61677.0,61676.0,0.14053027]
[1722673022897,0.71775554,61677.0,61676.0,0.14053027]
[1722673023280,0.62663155,61677.0,61676.0,0.14053027]
[1722673024596,0.36873978,61677.0,61676.0,0.14053027]
[1722673024796,0.26801958,61677.0,61676.0,0.14053027]
[1722673024914,0.17128924,61677.0,61676.0,0.15053027]
[1722673025110,0.30689024,61677.0,61676.0,0.14053027]
[1722673025361,0.37942503,61677.0,61676.0,0.14604368]
[1722673025521,0.2336468,61677.0,61676.0,0.15604368]
[1722673025722,0.2336468,61677.0,61676.0,0.14604368]
[1722673025723,0.3552478,61677.0,61676.0,0.14604368]
[1722673025987,0.30689024,61677.0,61676.0,0.15604368]
[1722673026341,0.18528924,61677.0,61676.0,0.15604368]
[1722673027837,0.17128924,61677.0,61676.0,0.15604368]
[1722673028160,0.16428924,61677.0,61676.0,0.15604368]
[1722673028740,0.16628924,61677.0,61676.0,0.15604368]
[1722673030371,0.16628924,61677.0,61676.0,0.27764668]
[1722673030583,0.16628924,61677.0,61676.0,0.28088906]
[1722673030801,0.16628924,61677.0,61676.0,0.52409506]
[1722673031013,0.16628924,61677.0,61676.0,1.00726468]
[1722673031221,0.16628924,61677.0,61676.0,1.06366468]
[1722673031417,0.16609413,61677.0,61676.0,1.06366468]
[1722673031823,0.15809413,61677.0,61676.0,1.06366468]
[1722673032041,0.16009413,61677.0,61676.0,1.06366468]
[1722673032308,0.16409413,61677.0,61676.0,1.06366468]
[1722673032462,0.16409413,61677.0,61676.0,1.16366468]
[1722673032673,0.15809413,61677.0,61676.0,1.16466468]
[1722673032883,0.00083,61677.0,61676.0,1.16466468]
[1722673033346,0.00083,61677.0,61676.0,1.24926468]
[1722673034302,0.00083,61677.0,61676.0,0.86505868]
[1722673035548,0.00083,61677.0,61676.0,0.86405868]
[1722673035742,0.00183,61677.0,61676.0,0.86405868]
[1722673036175,0.00183,61677.0,61676.0,0.86505868]
[1722673037955,0.00183,61677.0,61676.0,1.34801662]
[1722673038193,0.00183,61677.0,61676.0,1.35001662]
[1722673043576,2.40183,61677.0,61676.0,1.35001662]
[1722673044429,2.40183,61677.0,61676.0,1.34901662]
[1722673044631,2.40083,61677.0,61676.0,1.34901662]
[1722673044853,2.40283,61677.0,61676.0,1.35601662]
[1722673045778,2.40183,61677.0,61676.0,1.35301662]
[1722673046568,2.40183,61677.0,61676.0,1.34901662]
[1722673046569,2.40083,61677.0,61676.0,1.34901662]
[1722673046966,2.40183,61677.0,61676.0,1.35701662]
[1722673047910,2.40283,61677.0,61676.0,1.36201662]
[1722673052099,2.28431073,61677.0,61676.0,1.36201662]
[1722673052478,2.28431073,61677.0,61676.0,1.60522262]
[1722673052682,2.28431073,61677.0,61676.0,1.36201662]
[1722673053282,2.28431073,61677.0,61676.0,1.52062262]
[1722673053481,2.28431073,61677.0,61676.0,1.27741662]
[1722673054331,2.28431073,61677.0,61676.0,1.52062262]
[1722673055499,2.28431073,61677.0,61676.0,1.19866468]
[1722673055931,2.28431073,61677.0,61676.0,1.44187068]
[1722673056678,2.28431073,61677.0,61676.0,1.19866468]
[1722673057476,2.28431073,61677.0,61676.0,0.63385268]
[1722673057690,2.28431073,61677.0,61676.0,0.69025268]
[1722673058789,2.28431073,61677.0,61676.0,0.93345868]
[1722673058989,2.28431073,61677.0,61676.0,0.69025268]
[1722673059189,2.28331073,61677.0,61676.0,0.62585268]
[1722673059415,2.28331073,61677.0,61676.0,0.86905868]
[1722673059591,2.28331073,61677.0,61676.0,0.63385268]
[1722673059592,2.28431073,61677.0,61676.0,0.63385268]
[1722673059855,2.28431073,61677.0,61676.0,0.87705868]
[1722673060302,2.28431073,61677.0,61676.0,0.62885268]
[1722673060303,2.28331073,61677.0,61676.0,0.62885268]
[1722673060450,2.28431073,61677.0,61676.0,0.63285268]
[1722673060653,2.28431073,61677.0,61676.0,0.01842641]
[1722673060654,2.68497197,61677.0,61676.0,0.01842641]
[1722673060861,2.95077297,61677.0,61676.0,0.01442641]
[1722673061070,3.26840673,61677.0,61676.0,0.008913]
[1722673061270,3.26840673,61677.0,61676.0,0.012913]
[1722673061453,3.26740673,61677.0,61676.0,0.004913]
[1722673061647,3.26740673,61677.0,61676.0,0.000913]
[1722673061864,3.2680793,61677.0,61676.0,0.000913]
[1722673062070,3.36053917,61677.0,61676.0,0.000913]
[1722673062304,3.19297497,61677.0,61676.0,0.000913]
[1722673062516,3.43130292,61677.0,61676.0,0.000913]
[1722673062704,3.43230292,61677.0,61676.0,0.007913]
[1722673063111,3.43130292,61677.0,61676.0,0.001913]
[1722673063591,3.43930292,61677.0,61676.0,0.002913]
[1722673063791,3.36693569,61677.0,61676.0,0.002913]
[1722673064186,3.61013769,61677.0,61676.0,0.002913]
[1722673064392,3.51927923,61677.0,61676.0,0.002913]
[1722673064618,3.51927923,61677.0,61676.0,0.001913]
[1722673064839,3.61576888,61677.0,61676.0,0.001913]
[1722673065049,3.74183411,61677.0,61676.0,0.001913]
[1722673065241,3.74122351,61677.0,61676.0,0.001913]
[1722673065881,3.62061145,61677.0,61676.0,0.001913]
[1722673066802,3.76534592,61677.0,61676.0,0.001913]
[1722673067424,3.62061145,61677.0,61676.0,0.001913]
[1722673068621,3.7859038,61677.0,61676.0,0.001913]
[1722673068823,4.22614974,61677.0,61676.0,0.001913]
[1722673068971,4.34590768,61677.0,61676.0,1e-06]
[1722673069801,4.34590768,61677.0,61669.0,0.010032]
[1722673069802,1.239735,61670.0,61669.0,0.010032]
[1722673069998,1.58176301,61670.0,61669.0,0.010032]
[1722673070208,1.72632288,61670.0,61669.0,0.010032]
[1722673070412,1.72632239,61670.0,61669.0,0.010032]
[1722673070608,1.58176301,61670.0,61669.0,0.010032]
[1722673071015,1.7263231,61670.0,61669.0,0.010032]
[1722673071215,1.58176301,61670.0,61669.0,0.010032]
[1722673071898,1.57869106,61670.0,61669.0,0.010032]
[1722673072098,1.58941961,61670.0,61669.0,0.010032]
[1722673072255,1.60341961,61670.0,61669.0,0.010032]
[1722673072459,1.58809733,61670.0,61669.0,0.010032]
[1722673072865,1.25489502,61670.0,61669.0,0.010032]
[1722673073072,1.35119559,61670.0,61669.0,0.010032]
[1722673073275,1.34110362,61670.0,61669.0,0.010032]